bitfinex-derivatives/quotes_ETHF0:USTF0_20250106
["timestamp","ask_amount","ask_price","bid_price","bid_amount"]
[1736152114310,1.2342,3653.5,3653.3,2.58793268]
[1736152114514,1.2342,3653.5,3653.4,0.2738]
[1736152114721,1.235,3653.5,3653.4,0.2744]
[1736152114917,1.235,3653.5,3653.4,0.54821]
[1736152115315,1.235,3653.5,3653.4,0.2744]
[1736152115515,1.235,3653.5,3653.4,5.54821]
[1736152115915,1.235,3653.5,3653.4,0.54821]
[1736152116919,1.234,3653.5,3653.4,0.54821]
[1736152117316,1.234,3653.5,3653.4,0.2744]
[1736152118826,1.234,3653.5,3653.4,0.54821]
[1736152119332,1.234,3653.5,3653.4,8.91024237]
[1736152120025,1.234,3653.5,3653.4,0.54821]
[1736152120525,1.234,3653.5,3653.4,1.12938434]
[1736152120726,0.75306153,3653.8,3653.4,0.85557434]
[1736152120933,1.234,3653.7,3653.6,0.27379]
[1736152121131,1.234,3653.7,3653.6,3.44350702]
[1736152121329,1.234,3653.7,3653.6,3.71729702]
[1736152121725,1.234,3653.7,3653.6,3.44350702]
[1736152121940,14.9332,3653.7,3653.6,0.85557434]
[1736152122139,3.82193268,3653.7,3653.1,0.41323255]
[1736152122338,3.82193268,3653.7,3652.1,0.4133445]
[1736152122339,2.58793268,3653.0,3652.1,0.4133445]
[1736152122642,2.58793268,3653.0,3651.8,12.5744955]
[1736152122643,3.23912167,3652.1,3651.8,12.5744955]
[1736152122836,1.234,3652.0,3651.8,12.5744955]
[1736152123042,1.234,3652.0,3651.9,47.75095511]
[1736152124042,1.234,3652.0,3651.9,41.48480321]
[1736152124848,1.234,3652.0,3651.9,41.91280534]
[1736152126544,1.234,3652.0,3651.9,42.18672534]
[1736152126740,1.234,3652.0,3651.9,41.91280534]
[1736152127540,1.234,3652.0,3651.9,42.02698809]
[1736152127742,4.47312167,3652.0,3651.9,1.22698809]
[1736152127941,4.47312167,3652.0,3651.9,1.11280534]
[1736152130049,4.74703167,3652.0,3651.9,0.43260534]
[1736152130348,0.27393,3651.9,3651.5,0.11435885]
[1736152130542,6.44692167,3651.6,3651.5,0.11435885]
[1736152131143,7.68092167,3651.6,3651.5,0.11435885]
[1736152131943,7.68092167,3651.6,3651.3,41.07397]
[1736152132145,3.23912167,3651.4,3651.3,41.07397]
[1736152133249,3.23912167,3651.4,3651.3,40.8]
[1736152133650,3.23912167,3651.4,3651.3,41.07397]
[1736152134242,4.47312167,3651.4,3651.3,41.07397]
[1736152135045,0.27391,3652.1,3651.3,41.07397]
[1736152135248,3.2078,3651.8,3651.3,41.07397]
[1736152135752,3.2078,3651.8,3651.4,0.27395]
[1736152136553,3.2078,3652.6,3652.2,0.27389]
[1736152136852,3.2078,3652.6,3652.3,0.27389]
[1736152136853,1.234,3652.5,3652.3,0.27389]
[1736152137047,1.234,3652.5,3651.6,0.33012202]
[1736152137048,1.234,3652.5,3652.4,41.10030332]
[1736152137648,1.234,3652.5,3652.4,0.30030332]
[1736152138547,1.234,3652.5,3652.4,0.63218811]
[1736152138755,1.234,3652.5,3652.4,0.6321773]
[1736152138949,0.61767431,3652.5,3652.4,0.6321773]
[1736152139143,1.234,3652.5,3652.4,0.6321773]
[1736152139751,0.27387,3652.7,3652.4,0.6321773]
[1736152139950,1.259,3652.6,3652.5,0.6321773]
[1736152140357,1.259,3652.6,3652.5,1.59078879]
[1736152141057,7.5904252,3652.9,3652.7,0.27386]
[1736152141252,7.5904252,3652.9,3652.8,0.6321773]
[1736152141554,8.8494252,3652.9,3652.8,0.6321773]
[1736152141754,8.8494252,3652.9,3652.8,1.31997308]
[1736152141755,9.1232752,3652.9,3652.8,1.31997308]
[1736152141954,8.8494252,3652.9,3652.8,1.31997308]
[1736152142355,8.8494252,3652.9,3652.8,1.74794461]
[1736152143452,7.5904252,3652.9,3652.8,1.74794461]
[1736152143656,4.3826252,3652.9,3652.8,2.02316348]
[1736152143850,0.27374,3654.3,3653.8,0.27377]
[1736152144053,1.259,3654.2,3653.9,0.44981709]
[1736152144258,1.259,3654.2,3654.0,1.56252011]
[1736152144464,1.53275,3654.2,3654.1,1.56252011]
[1736152144756,1.53275,3654.2,3654.1,0.44981709]
[1736152144757,1.259,3654.2,3654.1,0.44981709]
[1736152147066,1.259,3654.2,3654.1,0.72161716]
[1736152148365,1.259,3654.2,3654.1,0.44785716]
[1736152148860,1.53275,3654.2,3654.1,0.44785716]
[1736152150058,1.53275,3654.2,3654.1,0.44790916]
[1736152150365,1.259,3654.2,3654.1,0.44790916]
[1736152150566,1.53275,3654.2,3654.1,0.44531605]
[1736152152567,1.53275,3654.2,3654.1,0.44542379]
[1736152153160,1.259,3654.2,3654.1,0.44537339]
[1736152153360,1.53275,3654.2,3654.1,0.44537339]
[1736152154161,1.53275,3654.2,3654.1,0.33352096]
[1736152156463,6.259,3654.2,3652.6,3.2078]
[1736152156666,2.58997879,3653.3,3652.6,3.2078]
[1736152156863,0.27384,3653.0,3652.7,0.27386]
[1736152157062,1.259,3653.2,3652.6,3.2078]
[1736152157367,0.27387,3652.6,3652.3,0.27389]
[1736152157671,0.27387,3652.6,3652.5,8.52838653]
[1736152158069,7.80087,3652.6,3652.5,8.52838653]
[1736152158965,7.527,3652.6,3652.3,14.45495097]
[1736152159164,7.80087,3652.6,3652.5,4.27057656]
[1736152161266,11.00867,3652.6,3652.5,4.27057656]
[1736152161660,0.27388,3652.5,3652.4,4.27057656]
[1736152161869,2.86385879,3652.5,3652.4,4.27057656]
[1736152162765,7.86385879,3652.5,3652.4,4.27057656]
[1736152163267,7.58997879,3652.5,3651.9,4.27057656]
[1736152163470,0.27391,3652.0,3651.9,4.27057656]
[1736152164473,1.259,3652.0,3651.8,4.27057656]
[1736152164973,1.53292,3652.0,3651.8,4.54450656]
[1736152165371,1.53292,3652.0,3651.8,4.27057656]
[1736152165574,1.53292,3652.0,3651.8,4.54450656]
[1736152165772,1.259,3652.0,3651.8,4.27057656]
[1736152165975,0.27392,3651.9,3651.8,4.27057656]
[1736152166665,1.53292,3651.9,3651.8,4.27057656]
[1736152167368,1.259,3651.9,3651.3,4.27057656]
[1736152167568,0.27396,3651.4,3651.3,4.27057656]
[1736152168670,0.27397,3651.2,3651.1,4.27057656]
[1736152169776,0.27397,3651.3,3651.0,0.27399]
[1736152169981,1.252,3651.2,3651.0,0.27399]
[1736152170276,1.252,3651.2,3650.9,4.54456656]
[1736152170674,1.252,3651.1,3650.9,4.54456656]
[1736152170871,1.252,3651.1,3650.9,4.27057656]
[1736152171073,1.252,3651.1,3650.8,4.54457656]
[1736152171377,1.52598,3651.1,3650.8,4.27057656]
[1736152172472,0.27399,3651.0,3650.8,4.27057656]
[1736152172673,0.274,3650.8,3650.7,4.27057656]
[1736152173077,2.86397879,3650.8,3650.7,4.27057656]
[1736152174173,2.86397879,3650.8,3650.1,0.4434]
[1736152174174,2.58997879,3650.8,3650.1,0.4434]
[1736152174480,0.27403,3650.5,3650.2,0.27405]
[1736152174879,0.27403,3650.5,3650.1,0.71745]
[1736152175279,7.531,3650.6,3650.1,0.4434]
[1736152175479,0.27404,3650.3,3650.1,0.4434]
[1736152175777,7.531,3650.6,3650.1,0.4434]
[1736152175778,1.252,3650.2,3650.1,0.4434]
[1736152177078,1.252,3650.2,3650.1,0.71746]
[1736152177278,1.252,3650.2,3650.1,0.4434]
[1736152178981,1.252,3650.2,3650.1,0.71746]
[1736152179183,1.252,3650.2,3650.1,0.4434]
[1736152179386,1.252,3650.2,3650.1,0.71746]
[1736152179780,1.252,3650.2,3650.1,0.4434]
[1736152180079,1.252,3650.2,3650.1,0.71746]
[1736152180285,1.252,3650.2,3650.1,0.4434]
[1736152180585,1.252,3650.2,3650.1,0.71746]
[1736152181083,1.252,3650.2,3650.1,0.4434]
[1736152181485,1.252,3650.2,3650.1,0.71746]
[1736152183484,7.531,3650.6,3650.1,0.4434]
[1736152183690,1.252,3650.5,3650.4,3.48183]
[1736152184787,5.4898,3650.6,3650.5,0.27403]
[1736152184982,6.7418,3650.6,3650.5,0.27403]
[1736152185487,6.7418,3650.6,3650.5,41.07403]
[1736152187386,5.4898,3650.6,3650.5,41.07403]
[1736152187586,6.7418,3650.6,3650.5,41.07403]
[1736152187788,6.7418,3650.6,3650.5,0.27403]
[1736152192894,6.7418,3650.6,3650.4,3.2078]
[1736152193394,7.01582,3650.6,3650.4,3.2078]
[1736152194094,6.7418,3650.6,3650.4,3.2078]
[1736152194300,0.27403,3650.5,3650.4,3.2078]
[1736152194594,6.7418,3650.6,3650.4,3.2078]
[1736152194800,7.01582,3650.6,3650.4,3.2078]
[1736152195202,6.7418,3650.6,3650.4,3.2078]
[1736152195499,7.01583,3650.6,3650.4,3.2078]
[1736152196797,0.27403,3650.5,3650.4,3.2078]
[1736152197000,7.01582,3650.6,3650.4,3.2078]
[1736152197300,0.27403,3650.5,3650.4,3.2078]
[1736152198103,6.7418,3650.6,3650.4,3.2078]
[1736152198298,7.01582,3650.6,3650.4,3.2078]
[1736152199704,0.27403,3650.5,3650.4,3.2078]
[1736152199904,7.01582,3650.6,3650.4,3.48183]
[1736152200692,0.27403,3650.5,3650.4,3.2078]
[1736152201204,5.76382,3650.6,3650.4,3.48183]
[1736152201399,1.208,3650.5,3650.4,3.2078]
[1736152201606,1.48203,3650.5,3650.4,3.2078]
[1736152206306,1.48203,3650.5,3650.4,7.47480157]
[1736152207400,1.48203,3650.5,3650.4,4.26700157]
[1736152208802,1.89563,3650.5,3650.4,4.26700157]
[1736152209211,1.89563,3650.5,3650.4,2.90640157]
[1736152210003,1.89563,3650.5,3650.4,2.22610157]
[1736152210004,6.89563,3650.5,3650.4,2.22610157]
[1736152210505,1.89563,3650.5,3650.4,2.22610157]
[1736152211208,0.27406,3650.0,3649.9,0.27407]
[1736152211403,0.27408,3649.9,3649.8,0.27407]
[1736152212203,0.27408,3649.9,3649.8,5.50265947]
[1736152212404,0.27408,3649.9,3649.8,5.22858947]
[1736152212609,0.27408,3649.9,3649.8,5.50266947]
[1736152212907,0.27408,3649.9,3649.8,5.22858947]
[1736152213208,0.27408,3649.9,3649.8,5.50266947]
[1736152213409,0.27407,3649.9,3649.8,5.22858947]
[1736152213618,2.19623478,3650.3,3649.7,6.40050236]
[1736152213910,1.208,3650.2,3650.1,0.27405]
[1736152214107,1.208,3650.2,3649.7,6.40050236]
[1736152214406,1.208,3650.2,3650.0,0.27406]
[1736152214806,1.48205,3650.2,3650.0,0.27406]
[1736152215913,1.208,3650.2,3649.9,6.40050236]
[1736152216109,2.47029478,3650.0,3649.9,6.40050236]
[1736152216311,0.4143,3650.4,3650.1,0.27405]
[1736152216614,1.208,3650.0,3649.9,6.67457236]
[1736152217620,1.208,3650.0,3649.9,11.90252163]
[1736152218315,1.208,3650.0,3649.9,11.62845163]
[1736152218808,1.208,3650.0,3649.9,11.90252163]
[1736152219316,1.208,3650.0,3649.9,11.62845163]
[1736152219510,1.48206,3650.0,3649.9,11.62845163]
[1736152221314,1.208,3650.0,3649.9,0.27407]
[1736152221616,1.208,3650.0,3649.7,6.40050236]
[1736152221815,1.48207,3650.0,3649.7,6.40050236]
[1736152222120,1.48207,3650.0,3649.9,0.27407]
[1736152222416,1.48206,3650.0,3649.9,0.27407]
[1736152223108,3.20114418,3650.4,3649.8,5.22202273]
[1736152223308,1.208,3650.0,3649.9,0.27407]
[1736152223705,1.208,3650.0,3649.9,5.49609273]
[1736152225417,1.208,3650.0,3649.9,14.03009588]
[1736152227018,1.48206,3650.0,3649.9,13.75602588]
[1736152228022,1.48206,3650.0,3649.9,5.22202273]
[1736152230317,1.48206,3650.0,3649.7,6.72898024]
[1736152231616,0.27407,3649.9,3649.8,5.19772437]
[1736152233116,1.48207,3650.0,3649.8,5.19772437]
[1736152233319,1.48207,3650.0,3649.8,5.47180437]
[1736152233513,0.27407,3649.9,3649.8,5.19772437]
[1736152233714,1.208,3650.0,3649.8,5.19772437]
[1736152233915,1.48207,3650.0,3649.8,5.47180437]
[1736152234119,1.48207,3650.0,3649.8,0.27408]
[1736152235216,1.48206,3650.0,3649.9,0.27407]
[1736152235421,1.48206,3650.0,3649.8,0.27408]
[1736152237515,1.208,3650.0,3649.7,6.45490024]
[1736152237720,0.27408,3649.8,3649.7,6.45490024]
[1736152238720,3.48188,3649.8,3649.7,6.45490024]
[1736152238920,3.91458,3649.8,3649.7,6.45490024]
[1736152239316,3.6405,3649.8,3649.5,6.45490024]
[1736152239517,2.47032478,3649.6,3649.5,6.45490024]
[1736152240923,0.27412,3649.3,3649.2,0.27412]
[1736152242125,3.2078,3649.4,3648.8,6.45490024]
[1736152242325,0.27413,3649.1,3649.0,0.27413]
[1736152243225,0.27413,3649.2,3649.1,0.27413]
[1736152244924,0.27414,3649.1,3649.0,0.27413]
[1736152247023,1.172,3649.3,3648.7,6.45490024]
[1736152247227,1.172,3649.3,3649.2,0.27412]
[1736152247423,1.44612,3649.3,3649.2,0.27412]
[1736152247620,0.27413,3649.2,3649.1,0.27413]
[1736152248731,1.172,3649.3,3648.7,6.45490024]
[1736152248933,2.19623478,3649.2,3648.7,6.45490024]
[1736152249227,0.27415,3648.9,3648.8,0.27415]
[1736152250834,0.27414,3649.0,3648.8,0.27415]
[1736152251842,0.27414,3649.0,3648.6,3.6549]
[1736152252135,0.27414,3649.0,3648.8,0.27415]
[1736152252727,1.172,3648.9,3648.8,2.19623478]
[1736152252933,4.54227225,3649.9,3648.8,2.19623478]
[1736152253141,1.172,3649.6,3649.5,0.2741]
[1736152253935,1.172,3649.6,3649.2,9.66270024]
[1736152254135,1.172,3649.6,3649.5,0.2741]
[1736152255339,2.47030478,3650.0,3649.6,0.27409]
[1736152255540,1.172,3649.9,3649.6,0.27409]
[1736152255940,1.172,3649.9,3649.7,0.27408]
[1736152257031,1.172,3649.9,3649.8,0.27408]
[1736152257838,1.172,3649.9,3649.4,8.16020024]
[1736152258033,1.172,3649.9,3649.8,0.27408]
[1736152259633,3.22900175,3650.4,3649.8,3.2078]
[1736152259846,3.22900175,3650.4,3650.3,0.27403]
[1736152260040,4.37400175,3650.4,3650.3,0.27403]
[1736152260942,1.145,3650.4,3650.3,0.27403]
[1736152263246,1.145,3650.4,3650.2,2.04824]
[1736152263433,1.41904,3650.4,3650.2,1.7742]
[1736152264243,0.27404,3650.3,3650.0,6.45490024]
[1736152264756,1.145,3650.4,3649.9,6.72897024]
[1736152265055,3.34123478,3650.4,3649.9,6.45490024]
[1736152265255,0.27405,3650.3,3650.0,0.27406]
[1736152265864,0.27405,3650.3,3649.8,3.2078]
[1736152265865,0.27405,3650.2,3649.8,3.2078]
[1736152266049,3.34123478,3650.4,3649.8,3.2078]
[1736152266254,0.27406,3650.1,3649.9,0.27407]
[1736152266858,0.27406,3650.1,3649.8,3.48187]
[1736152267053,0.27407,3650.0,3649.8,3.48187]
[1736152267258,0.27408,3649.8,3649.7,6.45490024]
[1736152267450,2.47031478,3649.8,3649.7,6.45490024]
[1736152268153,2.47031478,3649.8,3649.6,0.27409]
[1736152270256,2.19623478,3649.8,3649.6,0.27409]
[1736152270860,2.47032478,3649.8,3649.5,0.2741]
[1736152271349,2.47032478,3649.8,3649.4,3.2078]
[1736152271350,0.2741,3649.6,3649.4,3.2078]
[1736152271547,1.145,3649.5,3649.4,3.2078]
[1736152272153,1.4191,3649.5,3649.4,3.2078]
[1736152272353,0.27411,3649.4,3649.3,6.45490024]
[1736152272559,0.27412,3649.3,3649.2,6.45490024]
[1736152274051,0.27412,3649.3,3649.0,0.27414]
[1736152274255,0.27412,3649.3,3649.0,0.27413]
[1736152274759,0.27412,3649.3,3648.8,11.34990024]
[1736152274961,0.27412,3649.3,3649.0,0.27413]
[1736152275762,0.27413,3649.2,3648.9,0.27414]
[1736152276257,0.27413,3649.1,3648.8,6.45490024]
[1736152276556,0.27413,3649.1,3648.8,6.72905024]
[1736152276760,2.19623478,3649.2,3648.9,0.27414]
[1736152276956,0.27412,3649.3,3649.0,0.27414]
[1736152277559,0.27412,3649.2,3648.9,0.27414]
[1736152277758,0.27413,3649.1,3648.8,6.72905024]
[1736152278356,0.27413,3649.1,3648.8,6.45490024]
[1736152278556,0.27413,3649.1,3648.9,0.27415]
[1736152278960,0.27413,3649.1,3648.9,5.44095619]
[1736152279360,0.27413,3649.1,3648.9,5.16680619]
[1736152279561,0.27414,3649.0,3648.9,5.16680619]
[1736152280265,0.27414,3649.0,3648.8,6.45490024]
[1736152280661,3.5933,3649.4,3648.8,6.45490024]
[1736152280662,2.19623478,3648.9,3648.8,6.45490024]
[1736152280966,2.47038478,3648.9,3648.8,6.45490024]
[1736152281267,2.47038478,3648.9,3648.5,8.80817315]
[1736152281268,0.27416,3648.7,3648.6,6.45490024]
[1736152281461,1.41916,3648.7,3648.6,6.45490024]
[1736152282757,1.41916,3648.7,3648.2,0.2742]
[1736152282758,4.3528,3648.7,3648.2,6.45490024]
[1736152282962,0.27419,3648.3,3648.2,6.45490024]
[1736152283362,2.11479,3648.3,3648.2,6.45490024]
[1736152283859,1.8406,3648.3,3647.8,8.53400315]
[1736152284167,1.8406,3648.3,3647.6,6.45275217]
[1736152284168,2.19623478,3647.9,3647.6,6.45275217]
[1736152284368,0.27424,3647.7,3647.6,6.45275217]
[1736152285464,0.27426,3647.4,3647.1,0.27428]
[1736152285660,0.27427,3647.3,3647.1,0.27428]
[1736152285858,2.19623478,3647.4,3646.9,8.53400315]
[1736152285859,2.47049478,3647.4,3646.9,8.53400315]
[1736152286059,2.19623478,3647.4,3646.9,8.53400315]
[1736152286256,2.47049478,3647.4,3647.1,0.27427]
[1736152286857,2.19623478,3647.4,3646.7,3.5953]
[1736152287063,2.47049478,3647.4,3646.8,0.2743]
[1736152287263,2.47049478,3647.4,3647.1,0.27428]
[1736152287667,2.19623478,3647.4,3646.7,3.5953]
[1736152287867,2.47049478,3647.4,3647.1,0.27428]
[1736152288567,2.19623478,3647.4,3647.1,0.27428]
[1736152288769,0.27427,3647.3,3647.1,0.27428]
[1736152288965,0.27427,3647.3,3647.0,0.27429]
[1736152289167,0.27427,3647.3,3647.0,0.27428]
[1736152289366,2.47049478,3647.4,3647.0,0.27428]
[1736152289564,0.27428,3647.2,3646.9,0.27429]
[1736152289764,2.19623478,3647.4,3646.7,3.5953]
[1736152289964,0.27429,3647.0,3646.7,3.86961]
[1736152290269,1.128,3646.9,3646.7,3.5953]
[1736152290676,1.128,3646.9,3646.7,3.86961]
[1736152290969,1.128,3646.9,3646.7,3.5953]
[1736152291870,1.128,3646.9,3646.8,0.2743]
[1736152292171,1.128,3646.9,3646.7,3.86961]
[1736152293072,1.128,3646.9,3646.8,0.2743]
[1736152293273,1.128,3646.9,3646.7,3.5953]
[1736152293463,2.19623478,3646.8,3646.7,3.5953]
[1736152294371,2.19623478,3646.8,3646.7,3.86961]
[1736152294567,1.128,3646.9,3646.7,3.86961]
[1736152294770,1.128,3646.9,3646.7,3.5953]
[1736152295875,1.4023,3646.9,3646.7,3.5953]
[1736152296074,1.128,3646.9,3646.7,3.5953]
[1736152296274,1.128,3646.9,3646.7,3.86961]
[1736152296476,0.27431,3646.7,3646.6,3.2078]
[1736152297575,0.27434,3646.3,3646.2,3.5878]
[1736152297764,9.73623478,3646.3,3646.2,1.7605]
[1736152297971,7.54,3646.3,3646.2,2.03485]
[1736152298172,8.668,3646.3,3646.2,5.24265]
[1736152306779,3.2078,3647.1,3646.2,4.9683]
[1736152306983,1.128,3647.0,3646.7,3.2078]
[1736152307174,15.95723478,3647.5,3646.7,3.2078]
[1736152307175,1.128,3646.9,3646.7,3.2078]
[1736152307381,1.128,3646.9,3646.8,0.2743]
[1736152308279,15.95723478,3647.5,3646.7,3.2078]
[1736152308487,15.95723478,3647.5,3647.3,0.27427]
[1736152308676,1.128,3647.4,3646.7,3.2078]
[1736152308879,1.128,3647.4,3647.2,0.27427]
[1736152309682,1.128,3647.4,3646.7,3.2078]
[1736152309885,1.128,3647.4,3647.2,0.27427]
[1736152310685,1.128,3647.4,3647.3,0.27427]
[1736152310984,1.128,3647.4,3647.2,0.27427]
[1736152311188,1.128,3647.4,3647.3,0.27427]
[1736152311482,1.128,3647.4,3646.7,1.47371887]
[1736152311686,0.2743,3646.8,3646.6,1.47372887]
[1736152311984,2.47053478,3646.9,3646.6,0.27432]
[1736152312184,2.19623478,3646.9,3646.4,0.27433]
[1736152312384,0.27432,3646.7,3646.3,5.31183]
[1736152312587,1.128,3646.6,3646.3,1.8297]
[1736152312781,0.27433,3646.5,3646.3,1.8297]
[1736152313285,3.32423478,3646.6,3646.2,1.7605]
[1736152313491,0.27433,3646.5,3646.2,1.7605]
[1736152313690,0.27433,3646.5,3646.2,2.03485]
[1736152313985,3.32423478,3646.6,3646.2,1.7605]
[1736152314189,0.27433,3646.5,3646.3,0.27434]
[1736152314583,1.128,3646.6,3646.5,0.27433]
[1736152316286,3.2078,3646.8,3646.7,0.27431]
[1736152316486,4.3358,3646.8,3646.7,0.27431]
[1736152316789,4.3358,3646.8,3646.6,0.27432]
[1736152318685,0.27431,3646.7,3646.4,0.27433]
[1736152318887,4.3358,3646.8,3646.6,0.27432]
[1736152319081,4.6101,3646.8,3646.6,0.27432]
[1736152319285,4.3358,3646.8,3646.6,0.27432]
[1736152319486,1.128,3646.8,3646.7,0.27431]
[1736152319984,3.2078,3647.4,3646.3,5.40403478]
[1736152320189,1.115,3646.8,3646.7,3.48211]
[1736152322686,1.115,3646.8,3646.7,4.68234097]
[1736152322894,1.115,3646.8,3646.7,3.48211]
[1736152326788,1.115,3646.8,3646.3,3.2078]
[1736152327092,2.47055478,3646.6,3646.4,1.47455152]
[1736152327283,2.47055478,3646.6,3646.4,0.27433]
[1736152328194,2.08152,3646.7,3646.4,0.27433]
[1736152328587,2.19623478,3646.6,3646.3,3.48214]
[1736152328793,0.27433,3646.5,3646.3,3.48214]
[1736152329493,2.19623478,3646.6,3646.3,3.2078]
[1736152329792,2.47055478,3646.6,3646.4,0.27433]
[1736152329982,0.27433,3646.5,3646.3,3.48214]
[1736152330492,2.19623478,3646.6,3646.3,3.48214]
[1736152330689,2.19623478,3646.6,3646.3,3.2078]
[1736152330895,2.47055478,3646.6,3646.4,0.27433]
[1736152331194,2.47055478,3646.6,3646.4,5.21110536]
[1736152332495,2.47055478,3646.6,3646.5,4.3108326]
[1736152332692,0.27432,3646.6,3646.5,4.3108326]
[1736152332892,2.08151,3646.7,3646.5,4.5851626]
[1736152333190,1.8072,3646.7,3646.5,4.5851626]
[1736152333390,2.08152,3646.7,3646.5,4.5851626]
[1736152333598,1.115,3646.6,3646.5,4.5851626]
[1736152333997,1.38932,3646.6,3646.5,4.5851626]
[1736152334292,1.115,3646.6,3646.5,4.5851626]
[1736152334598,1.38932,3646.6,3646.5,4.5851626]
[1736152334900,1.115,3646.6,3646.5,4.5851626]
[1736152335087,2.14343722,3646.8,3646.5,4.3108326]
[1736152335291,1.115,3646.7,3646.5,4.3108326]
[1736152335490,1.115,3646.7,3646.6,1.8463]
[1736152335703,1.115,3646.7,3646.6,2.12062]
[1736152335904,1.115,3646.7,3646.6,7.05763481]
[1736152336192,1.115,3646.7,3646.6,8.84373481]
[1736152337194,1.115,3646.7,3646.6,17.37773796]
[1736152337395,1.115,3646.7,3646.6,18.57783692]
[1736152337596,2.14343722,3647.2,3647.1,0.27428]
[1736152338098,3.25843722,3647.2,3647.1,0.27428]
[1736152338691,1.115,3647.2,3647.1,5.21129481]
[1736152339289,1.115,3647.2,3647.1,4.93701481]
[1736152339290,3.31123478,3647.2,3647.1,4.93701481]
[1736152339496,3.58550478,3647.2,3647.1,4.93701481]
[1736152339993,2.14343722,3647.6,3647.1,4.93701481]
[1736152340199,1.115,3647.5,3647.3,0.27426]
[1736152340396,1.115,3647.5,3647.4,0.27426]
[1736152340700,1.115,3647.5,3647.2,0.27427]
[1736152341101,1.115,3647.5,3647.3,6.17812088]
[1736152342496,1.115,3647.5,3647.4,4.30952088]
[1736152344097,0.27426,3647.4,3647.3,4.30952088]
[1736152344397,2.47049478,3647.4,3647.3,4.30952088]
[1736152344593,4.30769478,3647.4,3647.3,4.30952088]
[1736152345303,7.51549478,3647.4,3647.3,4.30952088]
[1736152345501,7.51549478,3647.4,3647.0,4.30952088]
[1736152345502,0.27428,3647.1,3647.0,4.30952088]
[1736152345801,2.47051478,3647.1,3647.0,4.30952088]
[1736152346911,0.27432,3646.6,3646.5,4.30952088]
[1736152347201,1.38932,3646.6,3646.5,4.30952088]
[1736152347604,1.115,3646.6,3646.5,4.58385088]
[1736152348200,1.115,3646.6,3646.5,0.27433]
[1736152349706,1.115,3646.6,3646.5,11.64229305]
[1736152354308,1.115,3646.6,3646.5,5.17992964]
[1736152357208,1.115,3646.6,3646.5,0.27433]
[1736152360120,1.115,3646.6,3646.4,3.2078]
[1736152360423,1.115,3646.6,3646.5,0.27433]
[1736152360922,1.115,3646.6,3646.4,3.48213]
[1736152361125,1.115,3646.6,3646.5,0.27433]
[1736152362228,1.115,3646.6,3646.5,5.18164702]
[1736152363225,1.115,3646.6,3646.5,4.58472077]
[1736152364723,1.115,3646.6,3646.5,4.31039077]
[1736152365027,1.38932,3646.6,3646.5,4.31039077]
[1736152365717,1.115,3646.6,3646.5,4.31039077]
[1736152366122,1.115,3646.6,3646.5,4.58472077]
[1736152369131,4.34211607,3647.1,3646.5,11.37270109]
[1736152369326,1.109,3647.0,3646.7,0.27431]
[1736152369522,0.2743,3646.9,3646.6,0.27432]
[1736152369724,1.109,3647.0,3646.7,0.27431]
[1736152369927,1.38329,3647.0,3646.8,0.2743]
[1736152370632,1.109,3647.0,3646.7,4.3102178]
[1736152370827,1.109,3647.0,3646.9,0.2743]
[1736152371131,1.38329,3647.0,3646.8,0.2743]
[1736152371527,1.38329,3647.0,3646.8,4.5845178]
[1736152373736,3.25488129,3647.1,3647.0,0.27429]
[1736152374034,1.109,3647.1,3647.0,0.27429]
[1736152376030,1.38328,3647.1,3647.0,0.27429]
[1736152377431,0.27429,3647.0,3646.9,0.27429]
[1736152379736,0.2743,3646.9,3646.8,4.5845178]
[1736152379937,0.2743,3647.0,3646.9,0.27429]
[1736152380134,5.45111607,3647.1,3646.8,4.3102178]
[1736152380334,0.2743,3646.9,3646.8,4.5845178]
[1736152380932,5.45111607,3647.1,3646.7,4.5845278]
[1736152380933,0.2743,3646.8,3646.7,4.5845278]
[1736152382237,0.2743,3646.8,3646.7,0.27431]
[1736152382639,2.14588129,3646.9,3646.6,4.3102178]
[1736152382839,0.27431,3646.7,3646.6,4.5845278]
[1736152383033,0.27431,3646.7,3646.6,4.3102178]
[1736152385036,2.14588129,3646.7,3646.4,7.5180178]
[1736152385232,2.14588129,3646.7,3646.6,2.05932]
[1736152385432,3.23988129,3646.7,3646.6,2.05932]
[1736152385632,3.23988129,3646.7,3646.6,44.05953155]
[1736152386036,1.094,3646.7,3646.6,14.63395596]
[1736152386640,1.094,3646.7,3646.6,13.43374441]
[1736152388744,1.094,3646.7,3646.6,13.15942441]
[1736152388946,1.36831,3646.7,3646.6,4.90894541]
[1736152389737,1.36831,3646.7,3646.6,5.18326541]
[1736152389938,1.36831,3646.7,3646.6,4.90894541]
[1736152390139,3.23988129,3646.7,3646.5,6.739799]
[1736152390533,3.51420129,3646.7,3646.5,6.739799]
[1736152391044,0.27432,3646.6,3646.5,6.465479]
[1736152391342,4.61643607,3646.6,3646.5,6.465479]
[1736152391543,6.42203607,3646.6,3646.5,6.465479]
[1736152392340,9.62983607,3646.6,3646.5,6.465479]
[1736152392743,0.27433,3646.5,3646.4,4.31628099]
[1736152394749,0.27436,3646.0,3645.9,4.59065099]
[1736152394943,1.36836,3646.0,3645.9,4.31628099]
[1736152395340,1.36836,3646.0,3645.9,4.59065099]
[1736152395540,1.094,3646.0,3645.9,4.31628099]
[1736152395736,3.23879833,3646.0,3645.9,0.27437]
[1736152395946,3.51315833,3646.0,3645.9,0.27437]
[1736152396245,3.23879833,3646.0,3645.9,0.27437]
[1736152396644,1.094,3646.0,3645.9,4.59065099]
[1736152398540,1.36836,3646.0,3645.9,4.31628099]
[1736152398742,1.36836,3646.0,3645.9,4.59065099]
[1736152398947,1.36836,3646.0,3645.9,4.31628099]
[1736152399147,0.27437,3645.9,3645.8,7.92798099]